[Event "*** Titled Tuesday Blitz"]
[Site "Chess.com"]
[Date "2020.10.20"]
[Round "9"]
[White "Margency"]
[Black "PhileKhoob"]
[Result "1-0"]
[WhiteElo "2689"]
[BlackElo "2539"]
[TimeControl "180+1"]
[EndTime "11:48:22 PDT"]
[Termination "Margency won on time"]

1. e4 {[%clk 0:03:00.9]} 1... c5 {[%clk 0:02:58.8]} 2. Nf3 {[%clk 0:03:00.8]}
2... d6 {[%clk 0:02:57.3]} 3. d4 {[%clk 0:03:01.3]} 3... cxd4 {[%clk 0:02:58.1]}
4. Nxd4 {[%clk 0:03:02.2]} 4... Nf6 {[%clk 0:02:58.1]} 5. Nc3 {[%clk 0:03:02.9]}
5... a6 {[%clk 0:02:58.8]} 6. Be3 {[%clk 0:03:02.3]} 6... e5 {[%clk 0:02:58.6]}
7. Nb3 {[%clk 0:03:02.5]} 7... Be7 {[%clk 0:02:59.1]} 8. Qd2 {[%clk 0:03:01.1]}
8... Be6 {[%clk 0:02:57.1]} 9. O-O-O {[%clk 0:02:57.8]} 9... Nbd7 {[%clk
0:02:57.6]} 10. f4 {[%clk 0:02:57.4]} 10... Qc7 {[%clk 0:02:58.1]} 11. h3 {[%clk
0:02:49.5]} 11... O-O {[%clk 0:02:55.7]} 12. g4 {[%clk 0:02:49.4]} 12... exf4
{[%clk 0:02:53.7]} 13. Bxf4 {[%clk 0:02:49.5]} 13... Ne5 {[%clk 0:02:54.5]} 14.
Qg2 {[%clk 0:02:47.8]} 14... b5 {[%clk 0:02:49.6]} 15. Kb1 {[%clk 0:02:46.1]}
15... Rac8 {[%clk 0:02:48.9]} 16. g5 {[%clk 0:02:43.6]} 16... Nh5 {[%clk
0:02:36.1]} 17. Bc1 {[%clk 0:02:42.5]} 17... b4 {[%clk 0:02:22.2]} 18. Nd5
{[%clk 0:02:42.3]} 18... Bxd5 {[%clk 0:02:22.2]} 19. exd5 {[%clk 0:02:43.2]}
19... a5 {[%clk 0:02:16.2]} 20. Nd4 {[%clk 0:02:40.7]} 20... g6 {[%clk
0:02:10.4]} 21. h4 {[%clk 0:02:23.6]} 21... a4 {[%clk 0:02:01.7]} 22. Be2 {[%clk
0:02:21.2]} 22... a3 {[%clk 0:01:45.1]} 23. b3 {[%clk 0:02:18.1]} 23... Rfe8
{[%clk 0:01:43]} 24. Bxh5 {[%clk 0:02:15.4]} 24... gxh5 {[%clk 0:01:43.9]} 25.
Rhf1 {[%clk 0:02:10.3]} 25... Bf8 {[%clk 0:01:43]} 26. Qd2 {[%clk 0:01:47.7]}
26... Qc5 {[%clk 0:01:35.6]} 27. Nf5 {[%clk 0:01:46.5]} 27... Ng6 {[%clk
0:01:23.9]} 28. Qd3 {[%clk 0:00:59.2]} 28... Re5 {[%clk 0:01:20.6]} 29. Be3
{[%clk 0:00:51.9]} 29... Qc7 {[%clk 0:01:06.9]} 30. Rf2 {[%clk 0:00:37.1]} 30...
Rce8 {[%clk 0:00:57]} 31. Bd2 {[%clk 0:00:34.5]} 31... Qc5 {[%clk 0:00:47.5]}
32. Qf3 {[%clk 0:00:20.9]} 32... Qc7 {[%clk 0:00:13.8]} 33. Bxb4 {[%clk
0:00:19.4]} 33... Rxf5 {[%clk 0:00:07.8]} 34. Qxf5 {[%clk 0:00:19.1]} 34... Re5
{[%clk 0:00:08.3]} 35. Qd3 {[%clk 0:00:17]} 35... Bg7 {[%clk 0:00:08.2]} 36.
Bxa3 {[%clk 0:00:15.8]} 36... Nxh4 {[%clk 0:00:06.8]} 37. Bb2 {[%clk 0:00:15]}
37... Rxg5 {[%clk 0:00:05.9]} 38. Bxg7 {[%clk 0:00:12.7]} 38... Rxg7 {[%clk
0:00:06.8]} 39. Qe4 {[%clk 0:00:09.7]} 39... Ng6 {[%clk 0:00:06.4]} 40. Qe8+
{[%clk 0:00:09.6]} 40... Nf8 {[%clk 0:00:06.9]} 41. Re1 {[%clk 0:00:09.8]} 41...
Qc3 {[%clk 0:00:05.6]} 42. a4 {[%clk 0:00:07]} 42... Rg4 {[%clk 0:00:02.4]} 43.
Qxf7+ {[%clk 0:00:06.6]} 1-0

[Event "*** Titled Tuesday Blitz"]
[Site "Chess.com"]
[Date "2020.10.20"]
[Round "9"]
[White "Sadykov_Ramil"]
[Black "Gloomy_Wanderer"]
[Result "0-1"]
[WhiteElo "2550"]
[BlackElo "2705"]
[TimeControl "180+1"]
[EndTime "11:48:25 PDT"]
[Termination "Gloomy_Wanderer won on time"]

1. d4 {[%clk 0:03:00.9]} 1... Nf6 {[%clk 0:02:59.5]} 2. Nc3 {[%clk 0:03:00.5]}
2... d5 {[%clk 0:02:59.4]} 3. Bf4 {[%clk 0:03:00.2]} 3... c5 {[%clk 0:02:58.8]}
4. e3 {[%clk 0:02:59.9]} 4... cxd4 {[%clk 0:02:59.2]} 5. exd4 {[%clk 0:02:59.6]}
5... a6 {[%clk 0:02:59.6]} 6. Nf3 {[%clk 0:02:52.6]} 6... Bg4 {[%clk 0:02:59.2]}
7. h3 {[%clk 0:02:45]} 7... Bxf3 {[%clk 0:02:58.9]} 8. Qxf3 {[%clk 0:02:45.9]}
8... Nc6 {[%clk 0:02:59.5]} 9. Ne2 {[%clk 0:02:37.2]} 9... Qb6 {[%clk 0:02:57]}
10. Qb3 {[%clk 0:02:29.7]} 10... Qxb3 {[%clk 0:02:43]} 11. axb3 {[%clk
0:02:30.6]} 11... e6 {[%clk 0:02:43.5]} 12. c3 {[%clk 0:02:29.1]} 12... Kd7
{[%clk 0:02:42]} 13. Nc1 {[%clk 0:02:14.1]} 13... Bd6 {[%clk 0:02:39.4]} 14.
Bxd6 {[%clk 0:02:05.5]} 14... Kxd6 {[%clk 0:02:40.3]} 15. Nd3 {[%clk 0:02:04.9]}
15... a5 {[%clk 0:02:39.4]} 16. f3 {[%clk 0:01:49.7]} 16... b6 {[%clk
0:02:33.3]} 17. Kd2 {[%clk 0:01:47.3]} 17... g5 {[%clk 0:02:30.2]} 18. h4 {[%clk
0:01:29.8]} 18... h6 {[%clk 0:02:29.3]} 19. Be2 {[%clk 0:01:24.8]} 19... Rag8
{[%clk 0:02:28.1]} 20. Ke3 {[%clk 0:01:13.6]} 20... Nd7 {[%clk 0:02:05.6]} 21.
hxg5 {[%clk 0:01:08]} 21... hxg5 {[%clk 0:02:05.1]} 22. g3 {[%clk 0:01:03.1]}
22... Nf8 {[%clk 0:01:58.3]} 23. Kf2 {[%clk 0:00:46.7]} 23... Nd7 {[%clk
0:01:55.2]} 24. f4 {[%clk 0:00:41]} 24... gxf4 {[%clk 0:01:44.6]} 25. gxf4
{[%clk 0:00:41.9]} 25... f6 {[%clk 0:01:45]} 26. Bf3 {[%clk 0:00:40.7]} 26...
Ne7 {[%clk 0:01:43.1]} 27. Rxh8 {[%clk 0:00:37.5]} 27... Rxh8 {[%clk 0:01:42.9]}
28. Rh1 {[%clk 0:00:38.4]} 28... Rxh1 {[%clk 0:01:41.2]} 29. Bxh1 {[%clk
0:00:39.3]} 29... Nf5 {[%clk 0:01:37.1]} 30. Bf3 {[%clk 0:00:39.5]} 30... Nf8
{[%clk 0:01:36]} 31. Bg4 {[%clk 0:00:37]} 31... Ne7 {[%clk 0:01:36]} 32. Ke3
{[%clk 0:00:32.9]} 32... Nd7 {[%clk 0:01:34.6]} 33. Bh3 {[%clk 0:00:30.5]} 33...
Nf8 {[%clk 0:01:27.8]} 34. Bg4 {[%clk 0:00:29.5]} 34... Nfg6 {[%clk 0:01:27.9]}
35. Bh5 {[%clk 0:00:27.8]} 35... Nh4 {[%clk 0:01:26]} 36. Bg4 {[%clk 0:00:27.1]}
36... Nhf5+ {[%clk 0:01:26.3]} 37. Kf3 {[%clk 0:00:23.2]} 37... Kd7 {[%clk
0:01:22.1]} 38. Bh3 {[%clk 0:00:21]} 38... Ke8 {[%clk 0:01:19.9]} 39. Bg4 {[%clk
0:00:20.2]} 39... Kf7 {[%clk 0:01:20.2]} 40. Bh5+ {[%clk 0:00:20.5]} 40... Kg7
{[%clk 0:01:19.8]} 41. Be8 {[%clk 0:00:19.3]} 41... Nd6 {[%clk 0:01:18.4]} 42.
Bh5 {[%clk 0:00:17.6]} 42... Nef5 {[%clk 0:01:18.5]} 43. Nf2 {[%clk 0:00:15]}
43... Kh6 {[%clk 0:01:14.8]} 44. Bg4 {[%clk 0:00:14.7]} 44... Kg6 {[%clk
0:01:15.3]} 45. Nd3 {[%clk 0:00:14.1]} 45... Ne4 {[%clk 0:01:13]} 46. Bh3 {[%clk
0:00:12.1]} 46... Nd2+ {[%clk 0:01:10.5]} 47. Ke2 {[%clk 0:00:11.6]} 47... Nxb3
{[%clk 0:01:10.6]} 48. Bg4 {[%clk 0:00:10]} 48... a4 {[%clk 0:00:57.1]} 49. Bh3
{[%clk 0:00:05.6]} 49... Na5 {[%clk 0:00:57.3]} 50. Kd2 {[%clk 0:00:05]} 50...
Nc4+ {[%clk 0:00:57.3]} 51. Kc2 {[%clk 0:00:04.6]} 51... Kh5 {[%clk 0:00:56.3]}
52. Bxf5 {[%clk 0:00:04.2]} 52... Ne3+ {[%clk 0:00:56.6]} 53. Kd2 {[%clk
0:00:02]} 53... Nxf5 {[%clk 0:00:57.5]} 54. Nb4 {[%clk 0:00:02]} 54... Kg4
{[%clk 0:00:56.5]} 55. Nc6 {[%clk 0:00:02.3]} 55... Kxf4 {[%clk 0:00:54.5]} 56.
Nd8 {[%clk 0:00:02.7]} 56... e5 {[%clk 0:00:54.7]} 57. Ne6+ {[%clk 0:00:02.8]}
57... Kf3 {[%clk 0:00:53]} 58. dxe5 {[%clk 0:00:01.5]} 58... fxe5 {[%clk
0:00:53.9]} 59. Nc7 {[%clk 0:00:02.2]} 59... Ne3 {[%clk 0:00:50]} 60. Kd3 {[%clk
0:00:01.7]} 60... e4+ {[%clk 0:00:47.5]} 61. Kd4 {[%clk 0:00:01.9]} 61... Nc2+
{[%clk 0:00:47.5]} 62. Kxd5 {[%clk 0:00:02.3]} 62... e3 {[%clk 0:00:47.8]} 63.
Ne6 {[%clk 0:00:01.9]} 63... e2 {[%clk 0:00:46.3]} 64. Ng5+ {[%clk 0:00:02.4]}
64... Kg2 {[%clk 0:00:46.4]} 0-1

[Event "*** Titled Tuesday Blitz"]
[Site "Chess.com"]
[Date "2020.10.20"]
[Round "9"]
[White "Guenplen"]
[Black "GregShahade"]
[Result "1-0"]
[WhiteElo "2841"]
[BlackElo "2658"]
[TimeControl "180+1"]
[EndTime "11:48:26 PDT"]
[Termination "Guenplen won by resignation"]

1. Nf3 {[%clk 0:03:00.9]} 1... Nf6 {[%clk 0:02:59.8]} 2. c4 {[%clk 0:03:01]}
2... g6 {[%clk 0:02:59.9]} 3. Nc3 {[%clk 0:03:01.4]} 3... d5 {[%clk 0:02:59]} 4.
cxd5 {[%clk 0:02:59.5]} 4... Nxd5 {[%clk 0:02:59.9]} 5. g3 {[%clk 0:02:59.9]}
5... Bg7 {[%clk 0:02:59.5]} 6. Bg2 {[%clk 0:02:58.2]} 6... Nb6 {[%clk
0:02:59.7]} 7. h4 {[%clk 0:02:57.6]} 7... h5 {[%clk 0:02:59]} 8. d4 {[%clk
0:02:55.8]} 8... Nc6 {[%clk 0:02:58]} 9. d5 {[%clk 0:02:51.7]} 9... Bxc3+ {[%clk
0:02:50.3]} 10. bxc3 {[%clk 0:02:52.6]} 10... Qxd5 {[%clk 0:02:50.5]} 11. O-O
{[%clk 0:02:40.8]} 11... Qxd1 {[%clk 0:02:43.1]} 12. Rxd1 {[%clk 0:02:41.7]}
12... Bf5 {[%clk 0:02:34.6]} 13. Bf4 {[%clk 0:02:39.4]} 13... Rc8 {[%clk
0:02:26.9]} 14. Nd4 {[%clk 0:02:31.4]} 14... Nxd4 {[%clk 0:02:20.3]} 15. cxd4
{[%clk 0:02:32.3]} 15... c6 {[%clk 0:02:18.5]} 16. e4 {[%clk 0:02:32.1]} 16...
Bg4 {[%clk 0:02:18.1]} 17. Rdb1 {[%clk 0:02:29.2]} 17... O-O {[%clk 0:02:12.8]}
18. a4 {[%clk 0:02:28.7]} 18... Rfd8 {[%clk 0:01:20.3]} 19. a5 {[%clk
0:02:24.2]} 19... Nc4 {[%clk 0:01:19.8]} 20. Rxb7 {[%clk 0:02:23]} 20... Rd7
{[%clk 0:01:18.9]} 21. a6 {[%clk 0:02:20.2]} 21... Nd6 {[%clk 0:00:58.3]} 22.
Bxd6 {[%clk 0:02:10.8]} 22... exd6 {[%clk 0:00:57.7]} 23. Rab1 {[%clk 0:02:07]}
23... Ra8 {[%clk 0:00:41.7]} 24. f3 {[%clk 0:01:34.2]} 24... Be6 {[%clk
0:00:40.6]} 25. Bf1 {[%clk 0:01:28.1]} 25... d5 {[%clk 0:00:31.2]} 26. e5 {[%clk
0:01:22.9]} 26... Kf8 {[%clk 0:00:26]} 27. Rxd7 {[%clk 0:01:19.5]} 27... Bxd7
{[%clk 0:00:25.7]} 28. Rb7 {[%clk 0:01:20.4]} 28... Ke8 {[%clk 0:00:20.3]} 29.
Kf2 {[%clk 0:01:18.4]} 29... Bc8 {[%clk 0:00:17.7]} 30. Rc7 {[%clk 0:01:16.3]}
30... Bd7 {[%clk 0:00:16.8]} 31. Ke3 {[%clk 0:01:13.1]} 31... Kd8 {[%clk
0:00:16.9]} 32. Rb7 {[%clk 0:01:13]} 32... Be6 {[%clk 0:00:15.3]} 33. Be2 {[%clk
0:01:07.1]} 33... Kc8 {[%clk 0:00:15.7]} 34. Bd1 {[%clk 0:00:55.1]} 34... Rb8
{[%clk 0:00:16.1]} 35. Rxa7 {[%clk 0:00:54.8]} 35... Rb1 {[%clk 0:00:16.2]} 36.
Ba4 {[%clk 0:00:49.8]} 36... Ra1 {[%clk 0:00:14.6]} 37. Bxc6 {[%clk 0:00:48.4]}
37... Ra3+ {[%clk 0:00:14.6]} 38. Kf4 {[%clk 0:00:46.9]} 38... Kd8 {[%clk
0:00:09.8]} 39. Bb5 {[%clk 0:00:39.5]} 39... Ra5 {[%clk 0:00:07.3]} 40. Rb7
{[%clk 0:00:25.3]} 40... Bc8 {[%clk 0:00:07.2]} 41. Rb6 {[%clk 0:00:24.6]} 41...
Ra3 {[%clk 0:00:05.3]} 42. Rd6+ {[%clk 0:00:21.8]} 42... Ke7 {[%clk 0:00:05]}
43. Rc6 {[%clk 0:00:20.5]} 43... Bd7 {[%clk 0:00:04.6]} 44. Rc7 {[%clk
0:00:20.4]} 44... Ke6 {[%clk 0:00:01.9]} 45. Bxd7+ {[%clk 0:00:19.9]} 45... Ke7
{[%clk 0:00:01.8]} 46. Bb5+ {[%clk 0:00:15.9]} 46... Ke6 {[%clk 0:00:02.7]} 47.
Rc6+ {[%clk 0:00:16]} 47... Ke7 {[%clk 0:00:03.1]} 48. Rd6 {[%clk 0:00:16.5]}
48... f6 {[%clk 0:00:03.3]} 49. Rxf6 {[%clk 0:00:16.5]} 49... g5+ {[%clk
0:00:04]} 50. Kxg5 {[%clk 0:00:16.4]} 50... Rc3 {[%clk 0:00:03.7]} 51. Rc6
{[%clk 0:00:14.8]} 51... Rxf3 {[%clk 0:00:03.1]} 52. Kxh5 {[%clk 0:00:15.1]}
52... Rxg3 {[%clk 0:00:03.2]} 53. a7 {[%clk 0:00:15.4]} 53... Rg8 {[%clk
0:00:03.4]} 54. Rg6 {[%clk 0:00:15]} 54... Rh8+ {[%clk 0:00:03.5]} 55. Kg5
{[%clk 0:00:15]} 55... Ra8 {[%clk 0:00:04.4]} 56. Bc6 {[%clk 0:00:13.3]} 56...
Kf7 {[%clk 0:00:05.3]} 57. Bxa8 {[%clk 0:00:12.3]} 1-0

[Event "*** Titled Tuesday Blitz"]
[Site "Chess.com"]
[Date "2020.10.20"]
[Round "9"]
[White "JonahWillow"]
[Black "abhidabhi"]
[Result "0-1"]
[WhiteElo "2643"]
[BlackElo "2807"]
[TimeControl "180+1"]
[EndTime "11:48:28 PDT"]
[Termination "abhidabhi won by resignation"]

1. e4 {[%clk 0:03:00.9]} 1... e6 {[%clk 0:03:00]} 2. d4 {[%clk 0:02:57.5]} 2...
d5 {[%clk 0:03:00.6]} 3. Nd2 {[%clk 0:02:58.2]} 3... a6 {[%clk 0:02:59.8]} 4. e5
{[%clk 0:02:47.8]} 4... c5 {[%clk 0:02:55.4]} 5. c3 {[%clk 0:02:48]} 5... Nc6
{[%clk 0:02:55.5]} 6. Ngf3 {[%clk 0:02:46.2]} 6... cxd4 {[%clk 0:02:50.6]} 7.
cxd4 {[%clk 0:02:47.1]} 7... f6 {[%clk 0:02:50.7]} 8. exf6 {[%clk 0:02:35]} 8...
Qxf6 {[%clk 0:02:50.1]} 9. Bd3 {[%clk 0:02:35.9]} 9... Bd6 {[%clk 0:02:44.5]}
10. O-O {[%clk 0:02:34.9]} 10... Nge7 {[%clk 0:02:44.5]} 11. Nb3 {[%clk
0:02:34.3]} 11... h6 {[%clk 0:02:41.1]} 12. Re1 {[%clk 0:02:06.8]} 12... O-O
{[%clk 0:02:39.2]} 13. Qe2 {[%clk 0:02:06.7]} 13... Nf5 {[%clk 0:02:19.6]} 14.
Be3 {[%clk 0:01:45.4]} 14... Bd7 {[%clk 0:02:16.1]} 15. Rac1 {[%clk 0:01:39.6]}
15... Rae8 {[%clk 0:02:14.3]} 16. Qd2 {[%clk 0:01:35.9]} 16... Nxe3 {[%clk
0:01:57.4]} 17. fxe3 {[%clk 0:01:24.5]} 17... e5 {[%clk 0:01:57.3]} 18. e4
{[%clk 0:00:59.3]} 18... Nxd4 {[%clk 0:01:28.9]} 19. Nbxd4 {[%clk 0:00:56.3]}
19... exd4 {[%clk 0:01:27.9]} 20. Qc2 {[%clk 0:00:12.7]} 20... dxe4 {[%clk
0:01:20.5]} 21. Bxe4 {[%clk 0:00:13.1]} 21... Bf4 {[%clk 0:01:19]} 22. Rcd1
{[%clk 0:00:13.1]} 22... Bg4 {[%clk 0:00:40.4]} 23. Rf1 {[%clk 0:00:06.6]} 23...
Be3+ {[%clk 0:00:40]} 24. Kh1 {[%clk 0:00:07.2]} 24... Kh8 {[%clk 0:00:37]} 25.
Qd3 {[%clk 0:00:06.8]} 25... Qe7 {[%clk 0:00:36.1]} 26. Bg6 {[%clk 0:00:05.2]}
26... Bxf3 {[%clk 0:00:34.6]} 27. Rxf3 {[%clk 0:00:03.1]} 27... Rxf3 {[%clk
0:00:33.8]} 28. Bxe8 {[%clk 0:00:02.9]} 28... Rf2 {[%clk 0:00:30.3]} 29. Bh5
{[%clk 0:00:03.5]} 29... Qf6 {[%clk 0:00:29.2]} 30. Qc4 {[%clk 0:00:01.8]} 30...
g6 {[%clk 0:00:22.5]} 31. Qc8+ {[%clk 0:00:02]} 31... Kg7 {[%clk 0:00:22.5]} 32.
Qd7+ {[%clk 0:00:02.2]} 32... Qf7 {[%clk 0:00:22.7]} 33. Qxf7+ {[%clk
0:00:02.8]} 33... Kxf7 {[%clk 0:00:22.6]} 34. Bf3 {[%clk 0:00:03.7]} 34... Rxb2
{[%clk 0:00:22.8]} 35. a4 {[%clk 0:00:04.1]} 35... b6 {[%clk 0:00:22.5]} 36. Rf1
{[%clk 0:00:03.6]} 36... Ke7 {[%clk 0:00:21.9]} 37. Be4 {[%clk 0:00:04.1]} 37...
g5 {[%clk 0:00:21.8]} 38. Bd3 {[%clk 0:00:04.6]} 38... b5 {[%clk 0:00:20.9]} 39.
axb5 {[%clk 0:00:05.5]} 39... axb5 {[%clk 0:00:21.8]} 40. Rb1 {[%clk 0:00:06.4]}
40... Rxb1+ {[%clk 0:00:21]} 41. Bxb1 {[%clk 0:00:07.3]} 41... Kd6 {[%clk
0:00:21.5]} 42. g3 {[%clk 0:00:07.9]} 42... Kc5 {[%clk 0:00:21.8]} 43. Kg2
{[%clk 0:00:08.7]} 43... g4 {[%clk 0:00:22.1]} 44. h3 {[%clk 0:00:07.9]} 44...
h5 {[%clk 0:00:21.4]} 45. hxg4 {[%clk 0:00:08.8]} 45... hxg4 {[%clk 0:00:22.3]}
46. Bf5 {[%clk 0:00:09.6]} 46... Kc4 {[%clk 0:00:21.2]} 47. Bxg4 {[%clk
0:00:08.7]} 47... b4 {[%clk 0:00:21.2]} 48. Bf5 {[%clk 0:00:08.3]} 48... d3
{[%clk 0:00:21.3]} 49. Kf3 {[%clk 0:00:08.3]} 49... Bh6 {[%clk 0:00:21.2]} 50.
Kf2 {[%clk 0:00:07.2]} 50... b3 {[%clk 0:00:21.2]} 51. Ke1 {[%clk 0:00:06.6]}
51... b2 {[%clk 0:00:20.6]} 52. Be6+ {[%clk 0:00:07.2]} 52... Kc3 {[%clk
0:00:20.2]} 53. Ba2 {[%clk 0:00:07.5]} 53... Kc2 {[%clk 0:00:20.5]} 54. g4
{[%clk 0:00:07.4]} 54... d2+ {[%clk 0:00:20.6]} 55. Ke2 {[%clk 0:00:07.6]} 55...
d1=Q+ {[%clk 0:00:21]} 0-1

[Event "*** Titled Tuesday Blitz"]
[Site "Chess.com"]
[Date "2020.10.20"]
[Round "9"]
[White "Vanina1989"]
[Black "Manukyan_Artak"]
[Result "1-0"]
[WhiteElo "2648"]
[BlackElo "2415"]
[TimeControl "180+1"]
[EndTime "11:48:32 PDT"]
[Termination "Vanina1989 won on time"]

1. e4 {[%clk 0:03:00.9]} 1... c6 {[%clk 0:03:00]} 2. Nf3 {[%clk 0:03:01.2]} 2...
d5 {[%clk 0:03:00.9]} 3. Nc3 {[%clk 0:03:01]} 3... Bg4 {[%clk 0:03:00.5]} 4. h3
{[%clk 0:03:00.6]} 4... Bxf3 {[%clk 0:03:00.6]} 5. Qxf3 {[%clk 0:03:00.8]} 5...
Nf6 {[%clk 0:03:01.5]} 6. Be2 {[%clk 0:03:00.7]} 6... e5 {[%clk 0:03:00.7]} 7.
O-O {[%clk 0:02:59.7]} 7... d4 {[%clk 0:02:56.9]} 8. Nb1 {[%clk 0:02:57.2]} 8...
Nbd7 {[%clk 0:02:54.8]} 9. d3 {[%clk 0:02:57]} 9... Be7 {[%clk 0:02:54]} 10. Qg3
{[%clk 0:02:57.1]} 10... O-O {[%clk 0:02:53.7]} 11. f4 {[%clk 0:02:54.7]} 11...
Bd6 {[%clk 0:02:43.8]} 12. f5 {[%clk 0:02:51.8]} 12... Ne8 {[%clk 0:02:43.4]}
13. Nd2 {[%clk 0:02:50]} 13... b5 {[%clk 0:02:42.6]} 14. Nf3 {[%clk 0:02:49.5]}
14... f6 {[%clk 0:02:41.8]} 15. Qf2 {[%clk 0:02:46.3]} 15... c5 {[%clk
0:02:39.3]} 16. g4 {[%clk 0:02:46.2]} 16... h6 {[%clk 0:02:38.6]} 17. h4 {[%clk
0:02:45.8]} 17... Be7 {[%clk 0:02:38.5]} 18. Qg3 {[%clk 0:02:45.2]} 18... a5
{[%clk 0:02:19.4]} 19. g5 {[%clk 0:02:43.4]} 19... hxg5 {[%clk 0:02:17.2]} 20.
hxg5 {[%clk 0:02:43.2]} 20... fxg5 {[%clk 0:02:14.3]} 21. Bxg5 {[%clk
0:02:42.1]} 21... Ra6 {[%clk 0:02:07.8]} 22. Rf2 {[%clk 0:02:42.1]} 22... Bxg5
{[%clk 0:01:57.6]} 23. Nxg5 {[%clk 0:02:41.8]} 23... Rff6 {[%clk 0:01:58.2]} 24.
Raf1 {[%clk 0:02:39.1]} 24... Nc7 {[%clk 0:01:50.7]} 25. Rh2 {[%clk 0:02:38.4]}
25... Rh6 {[%clk 0:01:50.6]} 26. Rxh6 {[%clk 0:02:37.9]} 26... Rxh6 {[%clk
0:01:50.1]} 27. Rf2 {[%clk 0:02:30.2]} 27... Qe7 {[%clk 0:01:38.5]} 28. Rg2
{[%clk 0:02:29.4]} 28... Kf8 {[%clk 0:01:26.7]} 29. Kf2 {[%clk 0:02:12.8]} 29...
Qf6 {[%clk 0:01:19.6]} 30. c3 {[%clk 0:01:44.9]} 30... b4 {[%clk 0:01:16.4]} 31.
cxd4 {[%clk 0:01:42.9]} 31... cxd4 {[%clk 0:01:16.5]} 32. Rg1 {[%clk 0:01:42.9]}
32... Qc6 {[%clk 0:01:14.3]} 33. Nf3 {[%clk 0:01:41.9]} 33... Ne8 {[%clk
0:01:04.9]} 34. Nxe5 {[%clk 0:01:36.9]} 34... Nxe5 {[%clk 0:01:05]} 35. Qxe5
{[%clk 0:01:37.1]} 35... Qc2 {[%clk 0:01:02.7]} 36. Rg2 {[%clk 0:01:16.5]} 36...
Qxb2 {[%clk 0:01:00.2]} 37. Qxa5 {[%clk 0:01:16.4]} 37... Qd2 {[%clk 0:00:45.1]}
38. Qc5+ {[%clk 0:01:15.6]} 38... Kg8 {[%clk 0:00:43.6]} 39. Qxd4 {[%clk
0:01:15.1]} 39... Qf4+ {[%clk 0:00:35.8]} 40. Kg1 {[%clk 0:01:15.1]} 40... Nf6
{[%clk 0:00:31.2]} 41. Qf2 {[%clk 0:01:10.7]} 41... Qc1+ {[%clk 0:00:30.8]} 42.
Bf1 {[%clk 0:01:10.4]} 42... Qc3 {[%clk 0:00:30.3]} 43. Qb2 {[%clk 0:01:02.8]}
43... Qe1 {[%clk 0:00:27.3]} 44. Qf2 {[%clk 0:00:52.9]} 44... Qc3 {[%clk
0:00:26.2]} 45. Qe3 {[%clk 0:00:51]} 45... Rh4 {[%clk 0:00:23.5]} 46. Qg3 {[%clk
0:00:35.8]} 46... Rg4 {[%clk 0:00:15.3]} 47. Qb8+ {[%clk 0:00:35.7]} 47... Kh7
{[%clk 0:00:15.5]} 48. Rxg4 {[%clk 0:00:31.4]} 48... Nxg4 {[%clk 0:00:16.4]} 49.
Qg3 {[%clk 0:00:27]} 49... Qd4+ {[%clk 0:00:11.7]} 50. Kh1 {[%clk 0:00:25.7]}
50... Ne3 {[%clk 0:00:09.8]} 51. Be2 {[%clk 0:00:25.7]} 51... Qa1+ {[%clk
0:00:07.6]} 52. Kh2 {[%clk 0:00:25.8]} 52... Qc1 {[%clk 0:00:06.6]} 53. Qf2
{[%clk 0:00:18.4]} 53... Qd2 {[%clk 0:00:06.2]} 54. Kg3 {[%clk 0:00:18.4]} 54...
Nc2 {[%clk 0:00:02.5]} 55. Bg4 {[%clk 0:00:15.3]} 1-0

[Event "*** Titled Tuesday Blitz"]
[Site "Chess.com"]
[Date "2020.10.20"]
[Round "9"]
[White "sopo-tereladze"]
[Black "ehrenfeld"]
[Result "1-0"]
[WhiteElo "2323"]
[BlackElo "2464"]
[TimeControl "180+1"]
[EndTime "11:48:36 PDT"]
[Termination "sopo-tereladze won on time"]

1. e4 {[%clk 0:03:00.9]} 1... d6 {[%clk 0:02:59.4]} 2. d4 {[%clk 0:02:59.9]}
2... g6 {[%clk 0:02:59.5]} 3. Nc3 {[%clk 0:03:00.1]} 3... Bg7 {[%clk 0:02:59.7]}
4. Nf3 {[%clk 0:03:00.5]} 4... Nf6 {[%clk 0:02:57.4]} 5. h3 {[%clk 0:02:58]}
5... O-O {[%clk 0:02:56.5]} 6. Be3 {[%clk 0:02:58.3]} 6... a6 {[%clk 0:02:53.7]}
7. a4 {[%clk 0:02:53.5]} 7... b6 {[%clk 0:02:53.6]} 8. Bd3 {[%clk 0:02:53.1]}
8... e6 {[%clk 0:02:53.3]} 9. O-O {[%clk 0:02:54]} 9... Bb7 {[%clk 0:02:51.3]}
10. Qe2 {[%clk 0:02:46.3]} 10... Nbd7 {[%clk 0:02:50.5]} 11. Rad1 {[%clk
0:02:46.3]} 11... c5 {[%clk 0:02:45]} 12. Rfe1 {[%clk 0:02:40.9]} 12... cxd4
{[%clk 0:02:43.1]} 13. Nxd4 {[%clk 0:02:41.8]} 13... Qc7 {[%clk 0:02:42.8]} 14.
Kh1 {[%clk 0:02:28]} 14... Nc5 {[%clk 0:02:36.3]} 15. f3 {[%clk 0:02:24]} 15...
Rfe8 {[%clk 0:02:34]} 16. Qd2 {[%clk 0:02:17.2]} 16... Rad8 {[%clk 0:02:01.4]}
17. Bh6 {[%clk 0:02:04.1]} 17... e5 {[%clk 0:01:56.6]} 18. Bxg7 {[%clk 0:02:01]}
18... Kxg7 {[%clk 0:01:54.8]} 19. Nf5+ {[%clk 0:01:56.1]} 19... Kg8 {[%clk
0:01:51]} 20. Qh6 {[%clk 0:01:50]} 20... Ne6 {[%clk 0:01:37.6]} 21. Nd5 {[%clk
0:01:38.5]} 21... Bxd5 {[%clk 0:01:26.1]} 22. exd5 {[%clk 0:01:35.6]} 22... Nxd5
{[%clk 0:01:25.5]} 23. Be4 {[%clk 0:01:03.7]} 23... Ndf4 {[%clk 0:01:19.8]} 24.
Ne3 {[%clk 0:00:56.4]} 24... d5 {[%clk 0:01:01.9]} 25. Bxd5 {[%clk 0:00:54.4]}
25... Qe7 {[%clk 0:00:56.2]} 26. Bxe6 {[%clk 0:00:47.4]} 26... Nxe6 {[%clk
0:00:47.1]} 27. Nd5 {[%clk 0:00:43.5]} 27... Rxd5 {[%clk 0:00:37.2]} 28. Rxd5
{[%clk 0:00:44.4]} 28... Nf4 {[%clk 0:00:35.5]} 29. Rd2 {[%clk 0:00:43.8]} 29...
Qf6 {[%clk 0:00:32.7]} 30. Red1 {[%clk 0:00:35.2]} 30... a5 {[%clk 0:00:25.1]}
31. Rd6 {[%clk 0:00:34.3]} 31... Qf5 {[%clk 0:00:23.8]} 32. Rd8 {[%clk
0:00:32.6]} 32... Qe6 {[%clk 0:00:23.5]} 33. Qg5 {[%clk 0:00:21.2]} 33... Kg7
{[%clk 0:00:21.9]} 34. Rxe8 {[%clk 0:00:20.2]} 34... Qxe8 {[%clk 0:00:21.6]} 35.
Qd8 {[%clk 0:00:21.1]} 35... Qxa4 {[%clk 0:00:19.8]} 36. Qd2 {[%clk 0:00:18.6]}
36... Qe8 {[%clk 0:00:17.7]} 37. Re1 {[%clk 0:00:17.7]} 37... Qe6 {[%clk
0:00:16.7]} 38. Qe3 {[%clk 0:00:15.5]} 38... h5 {[%clk 0:00:16]} 39. c3 {[%clk
0:00:15.4]} 39... f6 {[%clk 0:00:14.9]} 40. Qe4 {[%clk 0:00:14.8]} 40... h4
{[%clk 0:00:14.8]} 41. Qe3 {[%clk 0:00:13.8]} 41... g5 {[%clk 0:00:15]} 42. Kh2
{[%clk 0:00:14]} 42... Qb3 {[%clk 0:00:14.5]} 43. Qd2 {[%clk 0:00:11.4]} 43...
Qe6 {[%clk 0:00:12]} 44. Rd1 {[%clk 0:00:10.6]} 44... Kh6 {[%clk 0:00:11.1]} 45.
Qd8 {[%clk 0:00:09.3]} 45... Qf5 {[%clk 0:00:10.3]} 46. Qh8+ {[%clk 0:00:08.1]}
46... Kg6 {[%clk 0:00:08.6]} 47. Rd8 {[%clk 0:00:06.1]} 47... Ne6 {[%clk
0:00:03.9]} 48. Qg8+ {[%clk 0:00:07]} 48... Kh6 {[%clk 0:00:02.7]} 49. Qh8+
{[%clk 0:00:05.6]} 49... Kg6 {[%clk 0:00:02.6]} 50. Rg8+ {[%clk 0:00:05.8]}
50... Kf7 {[%clk 0:00:01.7]} 51. Qh7+ {[%clk 0:00:05.2]} 51... Qxh7 {[%clk
0:00:01]} 52. Rc8 {[%clk 0:00:02.5]} 1-0